Cogmind - Beta 13 @@@ ROGUE MODE // 2024.05.12 @ 14:57:53 Player: Florist Result: Destroyed by P-60 Hacker with Shock Rifle Performance ------------- Evolutions (3) 1500 Regions Visited (5) 1000 Robots Destroyed (104) 520 Value Destroyed (3950) 3950 Prototype IDs (2) 40 Alien Tech Used (0) 0 Bonus (809) 809 TOTAL SCORE: 7819 Bonus ------- High Alert Combat Kills 109 Entered Garrisons 200 Used RIF Installer 500 Cogmind --------- Core Integrity 0/700 Matter 300/300 Energy 74/100 System Corruption 3% Temperature Cool (0) Movement Walking (120) Location -7/Garrison Parts ------- > --- POWER (1) -------- (None) > --- PROPULSION (3) --- Aluminum Leg Aluminum Leg > --- UTILITY (6) ------ Hacking Suite Hacking Suite System Shield > --- WEAPON (3) ------- Heavy Laser > --- INVENTORY (5) ---- Light Nuclear Core Improved Heat Sink Huge Storage Unit Sensor Array Peak State ------------ > --- POWER ------------ (None) > --- PROPULSION ------- Light Treads Armored Treads Armored Treads > --- UTILITY ---------- Huge Storage Unit Improved Targeting Computer Improved Targeting Computer Improved Targeting Computer > --- WEAPON ----------- Heavy Laser Flak Gun Flak Gun > --- INVENTORY -------- Improved Treads Armored Treads Improved Heat Sink Improved Heat Sink Huge Storage Unit Sensor Array Improved Sensor Array Improved Targeting Computer Hacking Suite Hacking Suite System Shield Heavy Assault Rifle Flak Gun Flak Gun [Rating: 29] Favorites ----------- Power Light Ion Engine Engine Light Ion Engine Power Core Light Nuclear Core Propulsion Light Treads Treads Light Treads Leg Aluminum Leg Utility Improved Targeting Computer Device Sensor Array Storage High-capacity Storage Unit Processor Improved Targeting Computer Hackware Hacking Suite Protection Hardened Medium Armor Plating Weapon Shotgun Energy Gun Heavy Laser Ballistic Gun Shotgun Ballistic Cannon Improved Light Cannon Build | -11 -10 -9 -8 -7 -7 ------- Run | Yrd Mat Mat Mat Fac Gar Slots Evolved 6 | . . 2 2 2 . Power . | . . . . . . Propulsion 1 | . . . 1 . . Utility 4 | . . 1 1 2 . Weapon 1 | . . 1 . . . Parts Attached 66 | 5 7 14 15 4 21 Power 2 | . . 1 . . 1 Engine 1 | . . 1 . . . Core 1 | . . . . . 1 Reactor . | . . . . . . Propulsion 16 | 2 2 4 4 . 4 Treads 14 | 2 2 4 4 . 2 Leg 2 | . . . . . 2 Wheel . | . . . . . . Hover . | . . . . . . Flight . | . . . . . . Utility 23 | 1 2 3 6 4 7 Device 6 | . . 2 2 1 1 Storage 4 | 1 2 . 1 . . Processor 7 | . . 1 3 2 1 Hackware 4 | . . . . 1 3 Protection 2 | . . . . . 2 Artifact . | . . . . . . Weapon 25 | 2 3 6 5 . 9 Energy Gun 2 | . . . . . 2 Energy Cannon . | . . . . . . Ballistic Gun 19 | 2 3 4 3 . 7 Ballistic Cannon 4 | . . 2 2 . . Launcher . | . . . . . . Special Weapon . | . . . . . . Impact Weapon . | . . . . . . Slashing Weapon . | . . . . . . Piercing Weapon . | . . . . . . Special Melee Weapon . | . . . . . . Unidentified Prototypes . | . . . . . . Parts Lost 27 | . 1 2 7 . 17 Power 1 | . . 1 . . . Propulsion 7 | . . 1 3 . 3 Utility 7 | . . . . . 7 Weapon 12 | . 1 . 4 . 7 Highest Loss Streak 9 | . 1 1 5 . 9 To Critical Strikes . | . . . . . . Average Slot Usage (%) 80 | . 70 92 89 92 58 Engine 1 | . . 4 . . . Treads 22 | . 28 22 26 23 10 Device 5 | . . 10 9 7 . Storage 9 | . 14 11 9 7 3 Processor 11 | . . 11 18 30 18 Hackware 1 | . . . . . 8 Ballistic Gun 20 | . 27 22 18 15 9 Ballistic Cannon 5 | . . 10 7 7 2 Naked Turns 16 | . . . . . 16 Heaviest Build 92 | 9 86 55 91 90 92 Greatest Support 60 | 40 40 40 60 60 60 Greatest Overweight (x) 6 | . 2 1 1 1 6 Average Overweight (x) . | . . 1 . 1 . Largest Inventory Capacity 25 | 8 25 20 25 25 25 Average Capacity 20 | 7 19 20 24 25 15 Most Carried 23 | 4 17 20 23 20 18 Average Carried 16 | 2 11 19 21 18 10 Final Capacity 25 | 8 20 20 25 25 5 Final Carried 21 | 4 16 20 21 18 4 Class Distribution -------------------- 46% | Skirmisher 28% | Mutant 9% | Scavenger-Gunner 5% | Hacker-Mutant 3% | Scavenger-Skirmisher 3% | Gunner Dominant Class ---------------- Mutant | -10/Materials Skirmisher | -9/Materials Skirmisher | -8/Materials Scavenger-Gunner | -7/Factory Hacker-Mutant | -7/Garrison Resources | -11 -10 -9 -8 -7 -7 ----------- Run | Yrd Mat Mat Mat Fac Gar Matter Collected 2798 | 204 303 926 611 . 754 Remotely . | . . . . . . Salvage Created 3402 | . 333 1151 958 . 960 Parts 218 | . 31 92 57 . 38 Haulers Intercepted 2 | . . 2 . . . Recyclers Shooed 1 | . . 1 . . . Parts Field Recycled . | . . . . . . Retrieved Matter . | . . . . . . Parts Self-Destructed . | . . . . . . Prevented . | . . . . . . Kills | -11 -10 -9 -8 -7 -7 ------- Run | Yrd Mat Mat Mat Fac Gar Combat Hostiles Destroyed 79 | . 10 29 16 . 24 Guns 64 | . 10 20 12 . 22 Cannons 13 | . . 7 4 . 2 AOE 2 | . . 2 . . . Classes Destroyed 13 | . 4 6 1 . 2 Worker 9 | . . 7 2 . . Builder 1 | . . 1 . . . Tunneler 1 | . . 1 . . . Hauler 2 | . . 2 . . . Recycler 1 | . . . 1 . . Operator 2 | . 1 1 . . . Watcher 9 | . 2 4 3 . . Swarmer 14 | . 3 11 . . . Grunt 49 | . 7 11 12 . 19 Brawler 1 | . . . . . 1 Duelist 1 | . . 1 . . . Sentry 12 | . . 6 4 . 2 Specialist 2 | . . . . . 2 Best Kill Streak 8 | . 5 7 6 . 8 Combat Bots Only 8 | . 4 4 3 . 8 Max Kills in Single Turn 4 | . 2 4 2 . 1 Gunslinging 1 | . 1 . . . . Exploded 1 | . . 1 . . . Melee . | . . . . . . Uniques/NPCs Destroyed . | . . . . . . Combat | -11 -10 -9 -8 -7 -7 -------- Run | Yrd Mat Mat Mat Fac Gar Hostile Shots Fired 657 | . 43 154 96 . 364 Missed 185 | . 9 42 23 . 111 Damage Taken 6085 | . 384 1334 1184 . 3183 Core 1063 | . 53 232 65 . 713 Absorbed by Shields . | . . . . . . Core Remaining (%) 77 | 100 78 42 88 . . Volleys Fired 276 | . 37 65 44 1 129 Largest 3 | . 2 3 3 3 3 Hottest 125 | . 46 101 97 81 125 Shots Fired 578 | . 71 189 126 3 189 Gun 452 | . 71 125 87 2 167 Cannon 126 | . . 64 39 1 22 Launcher . | . . . . . . Special . | . . . . . . Kinetic 521 | . 71 189 126 3 132 Thermal 57 | . . . . . 57 Explosive . | . . . . . . Electromagnetic . | . . . . . . Robot Hit Streak 25 | . 8 7 11 2 25 Robot Miss Streak 9 | . 5 9 3 1 6 Penetration Max . | . . . . . . Secondary Targets 6 | . 1 1 1 . 3 Max Gunslinging Chain 1 | . 1 1 1 . 1 Shots Hit Robots 337 | . 49 88 83 2 115 Core Hits 251 | . 26 62 46 1 116 Critical Kills . | . . . . . . Critical Parts Destroyed 2 | . . 1 1 . . Critical Strikes 3 | . . 2 1 . . Destroy 2 | . . 1 1 . . Blast 1 | . . 1 . . . Melee Attacks . | . . . . . . Impact . | . . . . . . Slashing . | . . . . . . Piercing . | . . . . . . Sneak Attacks . | . . . . . . Combat Hostiles . | . . . . . . Follow-up Attacks . | . . . . . . Damage Inflicted 6771 | . 700 2397 1433 34 2207 Guns 4931 | . 700 1065 1048 18 2100 Cannons 1028 | . . 520 385 16 107 Explosions 808 | . . 808 . . . Melee . | . . . . . . Ramming 4 | . . 4 . . . Kinetic 5712 | . 700 1585 1433 34 1960 Thermal 343 | . . 96 . . 247 Explosive 712 | . . 712 . . . Electromagnetic . | . . . . . . Impact . | . . . . . . Slashing . | . . . . . . Piercing . | . . . . . . Highest Corruption 3 | . . 3 . . 3 Average Corruption 2 | . . 2 . . 3 Corruption Purged . | . . . . . . Corruption Blocked . | . . . . . . Effects 30 | . . 21 . . 9 Message Errors 9 | . . 7 . . 2 Matter Fused 5 | . . 4 . . 1 Heat Flow Errors 1 | . . 1 . . . Energy Discharges 5 | . . 4 . . 1 Data Loss (minor) 5 | . . 3 . . 2 Data Loss (major) 4 | . . 1 . . 3 Alerts 1 | . . 1 . . . Overload Shots . | . . . . . . Overflow Damage 126 | . . 126 . . . Projectiles 6 | . . 6 . . . Explosions 120 | . . 120 . . . Melee . | . . . . . . Knockbacks 12 | . . 4 4 1 3 Impact . | . . . . . . Kinetic 11 | . . 3 4 1 3 Secondary 1 | . . 1 . . . Self-Inflicted Damage 168 | . . 168 . . . Shots 3 | . . 3 . . . Rammed 1 | . . 1 . . . Targets Rammed 1 | . . 1 . . . Kicked . | . . . . . . Crushed . | . . . . . . Highest Temperature 413 | . . 179 89 . 413 Average Temperature 56 | . . 29 29 . 121 Received Heat Transfer 2697 | . 171 333 702 . 1491 Effects 2 | . . . . . 2 Energy Bleed 1 | . . . . . 1 Short Circuit 1 | . . . . . 1 Siege Activations . | . . . . . . Robots Corrupted . | . . . . . . Combat Hostiles . | . . . . . . Parts Fried . | . . . . . . Impact Corruptions . | . . . . . . Robots Melted . | . . . . . . Combat Hostiles . | . . . . . . Parts Melted 1 | . . . . . 1 Heat Transferred 531 | . . 50 . . 481 Parts Sabotaged . | . . . . . . Parts Stolen . | . . . . . . Parts Stripped . | . . . . . . Power Chain Reactions . | . . . . . . Alert | -11 -10 -9 -8 -7 -7 ------- Run | Yrd Mat Mat Mat Fac Gar Peak Influence 819 | . 169 582 324 75 819 Initial 225 | . . 14 225 47 . Average 158 | . 33 188 171 65 327 Maximum Alert Level 3 | . . 2 1 . 3 Low Security (%) 69 | 100 100 53 71 100 35 Level 1 20 | . . 34 28 . 22 Level 2 8 | . . 11 . . 29 Level 3 1 | . . . . . 11 Level 4 . | . . . . . . Level 5 . | . . . . . . High Security . | . . . . . . Max Security . | . . . . . . Squads Dispatched 7 | . 2 4 . 1 . Investigation 3 | . . 2 . 1 . Extermination . | . . . . . . Reinforcement 4 | . 2 2 . . . Assault . | . . . . . . Garrison . | . . . . . . Intercept . | . . . . . . Searches Triggered . | . . . . . . Construction Impeded 1 | . . 1 . . . Haulers Reinforced . | . . . . . . Active Scanning Responses . | . . . . . . Cargo Convoy Interrupts . | . . . . . . Stealth | -11 -10 -9 -8 -7 -7 --------- Run | Yrd Mat Mat Mat Fac Gar Distress Signals 9 | . 1 5 3 . . Communications Jammed . | . . . . . . Distress Signals . | . . . . . . Times Spotted 122 | . 20 43 21 1 37 Peak Tracking Total 9 | . 6 5 4 1 9 Tactical Retreats 3 | . . . . . 3 Traps | -11 -10 -9 -8 -7 -7 ------- Run | Yrd Mat Mat Mat Fac Gar Traps Triggered 5 | . . 2 . . 3 Indirectly . | . . . . . . Trap Hack Attempts . | . . . . . . Triggered . | . . . . . . Disarmed . | . . . . . . Reprogrammed . | . . . . . . Reused . | . . . . . . Traps Extracted . | . . . . . . Installed . | . . . . . . Triggered . | . . . . . . Machines | -11 -10 -9 -8 -7 -7 ---------- Run | Yrd Mat Mat Mat Fac Gar Machines Disabled 12 | . . 8 . . 4 Max in Single Turn 2 | . . 2 . . 2 Garrison Relay 2 | . . . . . 2 Phase Generator 1 | . . . . . 1 Machines Repaired . | . . . . . . Machines Dismantled . | . . . . . . Machines Sabotaged . | . . . . . . Overloaded Fab Kills . | . . . . . . Hacking | -11 -10 -9 -8 -7 -7 --------- Run | Yrd Mat Mat Mat Fac Gar Machines Accessed 21 | . 6 5 5 3 2 Terminals 19 | . 6 5 5 1 2 Fabricators 1 | . . . . 1 . Repair Stations . | . . . . . . Recycling Units . | . . . . . . Scanalyzers . | . . . . . . Garrison Access 1 | . . . . 1 . Total Hacks 47 | . 11 14 12 8 2 Successful 26 | . 5 8 8 3 2 Failed 21 | . 6 6 4 5 . Catastrophic 2 | . 1 . 1 . . Database Lockouts . | . . . . . . Manual 29 | . 10 13 5 1 . Terminals 42 | . 11 14 12 3 2 Fabricators 3 | . . . . 3 . Repair Stations . | . . . . . . Recycling Units . | . . . . . . Scanalyzers . | . . . . . . Garrison Access 2 | . . . . 2 . Terminal Hacks 9 | . . 3 3 1 2 Record 1 | . . . . 1 . Robot Analysis 1 | . . 1 . . . Prototype ID Bank 1 | . . . 1 . . Branch Access Points 1 | . . 1 . . . Emergency Access Points 1 | . . . . . 1 Locate Traps 1 | . . . 1 . . Hauler Manifests 2 | . . 1 1 . . Security Stations 1 | . . . . . 1 Fabricator Hacks . | . . . . . . Repair Station Hacks . | . . . . . . Recycling Unit Hacks . | . . . . . . Scanalyzer . | . . . . . . Garrison Access Hacks 1 | . . . . 1 . Unlock Access 1 | . . . . 1 . Unauthorized Hacks 16 | . 5 5 5 1 . Terminals 16 | . 5 5 5 1 . Botnet 16 | . 5 5 5 1 . Fabricators . | . . . . . . Repair Stations . | . . . . . . Recycling Units . | . . . . . . Scanalyzers . | . . . . . . Garrison Access . | . . . . . . Data Cores Recovered . | . . . . . . Used . | . . . . . . Hacking Detections 11 | . 3 3 2 3 . Full Trace Events 3 | . . 2 . 1 . Feedback Events . | . . . . . . Feedback Blocked . | . . . . . . Robot Schematics Acquired . | . . . . . . Robots Built . | . . . . . . Authchips . | . . . . . . Time . | . . . . . . Total Robot Build Rating . | . . . . . . Part Schematics Acquired . | . . . . . . Parts Built . | . . . . . . Authchips . | . . . . . . Time . | . . . . . . Total Part Build Rating . | . . . . . . Parts Repaired . | . . . . . . Time . | . . . . . . Parts Recycled . | . . . . . . Recycled Matter . | . . . . . . Retrieved Matter . | . . . . . . Retrieved Components . | . . . . . . Parts Scanalyzed . | . . . . . . Part Schematics Acquired . | . . . . . . Parts Damaged . | . . . . . . Bothacking | -11 -10 -9 -8 -7 -7 ------------ Run | Yrd Mat Mat Mat Fac Gar Used RIF Installer 1 | . . . . . 1 Robots Hacked . | . . . . . . Non-combat . | . . . . . . Combat . | . . . . . . Robot Hacks Applied . | . . . . . . Relay Couplers Released 9 | . . . . . 9 Machine Destruction 9 | . . . . . 9 Fabnet Peak Effective % . | . . . . . . Robots Rewired . | . . . . . . Allies Hacked . | . . . . . . Hacks Repelled . | . . . . . . Allies | -11 -10 -9 -8 -7 -7 -------- Run | Yrd Mat Mat Mat Fac Gar Total Allies . | . . . . . . Largest Group . | . . . . . . Highest-Rated Group . | . . . . . . Highest-Rated Ally . | . . . . . . Total Orders . | . . . . . . Ally Attacks . | . . . . . . Total Damage . | . . . . . . Kills . | . . . . . . Allies Corrupted . | . . . . . . Allies Melted . | . . . . . . Intel | -11 -10 -9 -8 -7 -7 ------- Run | Yrd Mat Mat Mat Fac Gar Robot Analysis Total 1 | . . 1 . . . Derelict Logs Recovered . | . . . . . . Drone Launches . | . . . . . . Drone Recoveries . | . . . . . . Exploration | -11 -10 -9 -8 -7 -7 ------------- Run | Yrd Mat Mat Mat Fac Gar Turns Passed 8851 | 97 2351 2557 2001 410 1435 Spaces Moved 3489 | 56 890 908 736 168 731 Core 491 | 7 . . . . 484 Treads 2978 | 49 890 908 736 168 227 Legs 20 | . . . . . 20 Wheels . | . . . . . . Hover . | . . . . . . Flight . | . . . . . . Fastest Speed 50 | 50 160 240 166 240 50 Average Speed 216 | 146 237 241 232 240 142 Slowest Speed 350 | 160 320 250 246 240 350 Overloaded Moves . | . . . . . . Propulsion Burnouts . | . . . . . . Robots Hopped . | . . . . . . Cave-ins Triggered . | . . . . . . Exploration Rate (%) 52 | 4 97 76 48 3 86 Regions Visited 5 Branch Regions . Pre-discovered Areas . | . . . . . . Known Exits Taken 3 | . . 1 1 1 . Unknown Exits Taken 2 | 1 1 . . . . Scrap Searched . | . . . . . . Spaces Dug . | . . . . . . Terrain Destroyed 128 | . . 51 2 . 75 Melee . | . . . . . . Projectile 5 | . . 3 2 . . AOE 123 | . . 48 . . 75 Terrain Rammed . | . . . . . . Walls Destroyed . | . . . . . . Machines Disabled . | . . . . . . Actions | -11 -10 -9 -8 -7 -7 --------- Run | Yrd Mat Mat Mat Fac Gar Total 4346 | 71 1066 1141 938 174 956 Wait 359 | 2 91 113 118 . 35 Move 3484 | 55 889 907 735 167 731 Hop . | . . . . . . Pick Up 91 | 9 27 25 18 . 12 Fast Attach . | . . . . . . Attach 54 | 5 3 8 14 4 20 Detach 4 | . 1 . . 1 2 Swap 12 | . 4 6 1 . 1 Drop 46 | . 14 16 8 1 7 Fire 276 | . 37 65 44 1 129 Melee . | . . . . . . Ram . | . . . . . . Kick . | . . . . . . Crush 1 | . . 1 . . . Escape Stasis 19 | . . . . . 19 Rewire . | . . . . . . Trap . | . . . . . . Miscellaneous . | . . . . . . Route ------- -11/Scrapyard -10/Materials (discovered 4 exits: *Mat x3 / [*Min]) -9/Materials (discovered 6 exits: *Mat x3 / *Min / *Sto x2) -8/Materials (discovered 2 exits: *Fac x2) -7/Factory -7/Garrison (discovered 3 exits: [*Fac x3]) History --------- Turn | Location | Event 35 | -11/Scrapyard | Discovered new exit (range 15) 98 | -11/Scrapyard | Entered Materials 271 | -10/Materials | Discovered new exit (range 16) 302 | -10/Materials | Build established: Mutant 756 | -10/Materials | Discovered new exit (range 10) 1662 | -10/Materials | Discovered new exit (range 4) 2235 | -10/Materials | Discovered new exit (range 16) 2449 | -10/Materials | Entered another Materials area 2449 | -9/Materials | Evolved 2 slots: Utility x1, Weapon x1 2736 | -9/Materials | Build established: Skirmisher 2789 | -9/Materials | Discovered new exit (range 9) 3000 | -9/Materials | Identified exit to Mines 3000 | -9/Materials | Identified exit to Storage 3074 | -9/Materials | Discovered new exit (range 9) 3091 | -9/Materials | Identified exit to Materials 3839 | -9/Materials | Discovered exit to Materials (range 3) 4257 | -9/Materials | Core integrity fell below 50% 4858 | -9/Materials | Discovered exit to Materials (range 4) 5006 | -9/Materials | Entered another Materials area 5006 | -8/Materials | Evolved 2 slots: Propulsion x1, Utility x1 6231 | -8/Materials | Discovered new exit (range 16) 6275 | -8/Materials | Identified exit to Factory 6440 | -8/Materials | Discovered exit to Factory (range 15) 6646 | -8/Materials | Lost 5 parts (3n2w) 7007 | -8/Materials | Entered Factory 7007 | -7/Factory | Evolved 2 slots: Utility x2 7069 | -7/Factory | Identified exit to Garrison 7299 | -7/Factory | Build established: Scavenger-Gunner 7417 | -7/Factory | Entered Garrison 7617 | -7/Garrison | Triggered checkpoint 7737 | -7/Garrison | Garrison Relay disabled 7853 | -7/Garrison | Triggered checkpoint 7930 | -7/Garrison | Lost 4 parts (1n1u2w) 8157 | -7/Garrison | Triggered checkpoint 8182 | -7/Garrison | Core integrity fell below 50% 8212 | -7/Garrison | Lost 9 parts (2n4u3w) 8272 | -7/Garrison | Core integrity fell below 20% 8300 | -7/Garrison | Destroyed 8 combat bots 8442 | -7/Garrison | Garrison Relay disabled 8483 | -7/Garrison | Discovered new exit (range 15) 8502 | -7/Garrison | Installed Relay Interface Framework 8627 | -7/Garrison | Learned Factory security intel 8657 | -7/Garrison | Build established: Hacker-Mutant 8663 | -7/Garrison | Discovered new exit (range 10) 8688 | -7/Garrison | Phase Generator disabled 8774 | -7/Garrison | Discovered new exit (range 7) 8821 | -7/Garrison | Triggered checkpoint 8852 | -7/Garrison | Destroyed by P-60 Hacker with Shock Rifle Last Messages --------------- ALERT: Garrison interior compromised. Connecting with Garrison Terminal... >>Download(Security) Retrieving Factory security records... Downloaded coordinate data. Data stored: Factory security intel. System corrupted: Energy discharge (-24). EXIT=FOUND System corrupted: Component data lost. Phase Generator explodes. The unstable cave ceiling collapses. System corrupted: Substantial component data lost. EXIT=FOUND Critical hit (Burn: +37). G-47 Trooper destroyed. Acquired Aluminum Leg. Acquired 10 matter. Acquired Aluminum Leg. K I ,,SGT8 X0HB997PJLT0MTG Acquired 10 matter. Map ----- +----------------------------------------------------+ | ?????????????????????????????????????????????????? | | ?????????????????????????????????????????????##### | | ?????????????????????????????????????????????# | | ?????????????????????????????????????????????# < | | ?????????????????????????????????????????????# | | ??????????????????? ?????????????????????????# # | | ??????????????????? ?????????????????????????# # | | ??????????????????? ?????????????????????????# # | | ??????????????????? ?????????????????????????# # | | ??????????????#???? #????????????????????????# # | | ????????????#??+??? ????????????????????????# # | | ??????????????????# ????????????????????????# # | | ????????????#??+??# ????????????????????????# # | | ??????????????#???# #????????????????????????# | | ??????????????????# #????????????????????????# # | | ??????????????????# #????????????????????????# # | | ??????????????????# #?????????#??????????????# # | | ??????????????????# #????????!#????????####### | | ????????????????### #??????? !#????????# " | | ????????????##### ######## #?????????# ##### # | | ????????????#%%* #?????????# #???# # | | ????????????# ### ###### ###?????????# #???# # | | ????????????# #?### #????# #???????????# #???# # | | #####???????# #???# #????#p#???????????# #???# # | | # #???????# ##### ######p#???????????# #???# # | | # < ######### ^ Y p @ #???????????# #???# # | | # ###### #### #???????????# #???# # | | # #?????????# #???????????# #???# # | | ######## #### #?????????# #???????????# #???# # | | ???????# #??# #?????????# #???????????# #???# # | | ???????# #### #######???# #???????????# #???# # | | ???????# #???# ????????#### ##### # | | ???????###### ##### #???# #????????# " " | | ????????????# #???# #???# #?######?# ######## # | | ????????????# #???# #???# #?# #?# #?###??# # | | ????????????# #???# #??## ### ###"###T#### # | | ????????????# ##### #### # | | ????????????# # | | ????????????# ^ # | | ????????????############# ## ## ########### | | ??????????????????????### ## ## ###???????? | | ????#######???????????# #???????? | | ??### ###?????????# #???????? | | ?## ####????????# " #???????? | | ## ##???????# "%" ==% #???????? | | # # # #???????### " ## =% ## ###???????? | | # ########### ## =[!##[ #?????????? | | # # == ######????? | | ! ! " #????? | | # # # ######## #### #????? | +----------------------------------------------------+ Best States ------------- Heat Dissipation 34 Energy Generation 10 Energy Capacity 125 Matter Stores 300 Matter Capacity 300 Sight Range 16 Robot Scan Range 15 Terrain Scan Density 10 Armor Coverage 450 Evasion (%) 55 Targeting Accuracy 24 Recoil Reduction 3 Offensive Hacking 20 Defensive Hacking 10 Item Schematics ----------------- None Robot Schematics ------------------ None Fabricated ------------ Nothing Alien Tech Used ----------------- None Achievements -------------- None Challenges ------------ None Game ------ Seed SpikedUltimatePropulsion Manual? 0 Play Time 00:53:51 Cumulative 50.0 hours Start 2024.05.12 @ 10:46:16 End 2024.05.12 @ 14:57:53 Sessions 1 Manual Loads 0 Difficulty Rogue Special Mode None Game No. 62 Rogue 62 Adventurer 0 Explorer 0 Win Type - Total 0 Types 0/0/0/0/0/0/0/0/0 Lore% 21 Gallery% 44 Achievement% 35 Wizard Run 0 Options --------- Layout 1 ASCII 0 Keyboard 0 Movement Mouse Keybinds 0 Fullscreen 1 Font 32/SmallcapsGlow Map View 77x35 Zoom Use 0% Tactical HUD 0 Map Filters NONE Filters NONE Steam 1 RUN: 27e08305-188d-4d46-bdb8-fc1ea36fcf7b